[Event "Late-Titled-Tuesday-Blitz-February-27-2024"]
[Site "Chess.com"]
[Date "2024.02.27"]
[Round "11"]
[White "jinxy2009"]
[Black "ChessFanNM"]
[Result "1-0"]
[WhiteElo "2184"]
[BlackElo "2290"]
[TimeControl "180+1"]
[EndTime "16:06:24 PST"]
[Termination "jinxy2009 won by resignation"]

1. e4 {[%clk 0:03:00.9]} 1... c6 {[%clk 0:02:56.7]} 2. d4 {[%clk 0:03:00.5]}
2... d5 {[%clk 0:02:49.4]} 3. e5 {[%clk 0:03:00.8]} 3... Bf5 {[%clk 0:02:48.7]}
4. h4 {[%clk 0:02:59.4]} 4... h5 {[%clk 0:02:47.8]} 5. Bd3 {[%clk 0:02:59.9]}
5... Bxd3 {[%clk 0:02:45.1]} 6. Qxd3 {[%clk 0:03:00.8]} 6... Qa5+ {[%clk
0:02:40.5]} 7. Nd2 {[%clk 0:02:57.7]} 7... Qa6 {[%clk 0:02:38.4]} 8. c4 {[%clk
0:02:57.4]} 8... e6 {[%clk 0:02:36]} 9. Ngf3 {[%clk 0:02:56.8]} 9... Nh6 {[%clk
0:02:30]} 10. O-O {[%clk 0:02:56]} 10... Nf5 {[%clk 0:02:29.4]} 11. Rd1 {[%clk
0:02:54.9]} 11... Nd7 {[%clk 0:02:24.1]} 12. b3 {[%clk 0:02:52.1]} 12... Be7
{[%clk 0:02:20.8]} 13. a4 {[%clk 0:02:51.7]} 13... Nxh4 {[%clk 0:02:14.6]} 14.
Nxh4 {[%clk 0:02:51.3]} 14... Bxh4 {[%clk 0:02:14]} 15. Ba3 {[%clk 0:02:49.1]}
15... Be7 {[%clk 0:02:01.4]} 16. Bxe7 {[%clk 0:02:48.5]} 16... Kxe7 {[%clk
0:02:02.3]} 17. b4 {[%clk 0:02:26.9]} 17... dxc4 {[%clk 0:01:55]} 18. Nxc4
{[%clk 0:02:20.1]} 18... Nb6 {[%clk 0:01:53.8]} 19. b5 {[%clk 0:02:01.5]} 19...
cxb5 {[%clk 0:01:52.2]} 20. Nd6 {[%clk 0:02:01.2]} 20... b4 {[%clk 0:01:41.1]}
21. Qf3 {[%clk 0:01:43.3]} 21... Raf8 {[%clk 0:01:31.7]} 22. d5 {[%clk
0:01:09.9]} 22... Nxd5 {[%clk 0:01:22.8]} 23. Nf5+ {[%clk 0:01:00.9]} 23... exf5
{[%clk 0:01:08.7]} 24. Qxd5 {[%clk 0:01:00.8]} 24... Qc6 {[%clk 0:01:06.7]} 25.
Qd4 {[%clk 0:00:52]} 25... Rd8 {[%clk 0:00:53.5]} 26. Qh4+ {[%clk 0:00:51.2]}
26... f6 {[%clk 0:00:43.7]} 27. exf6+ {[%clk 0:00:51.1]} 27... Qxf6 {[%clk
0:00:41.8]} 28. Qxb4+ {[%clk 0:00:51.2]} 28... Kf7 {[%clk 0:00:41.1]} 29. Qxb7+
{[%clk 0:00:51]} 29... Kg6 {[%clk 0:00:41.1]} 30. Qxa7 {[%clk 0:00:35]} 30... h4
{[%clk 0:00:40.8]} 31. Qc7 {[%clk 0:00:20.6]} 31... Rxd1+ {[%clk 0:00:35]} 32.
Rxd1 {[%clk 0:00:20.3]} 32... Re8 {[%clk 0:00:35.3]} 33. a5 {[%clk 0:00:14.1]}
33... Re7 {[%clk 0:00:30.8]} 34. Qb6 {[%clk 0:00:07.7]} 34... Re6 {[%clk
0:00:29.5]} 35. Qb5 {[%clk 0:00:07.2]} 35... Re5 {[%clk 0:00:28]} 36. Qb6 {[%clk
0:00:04.1]} 36... Re6 {[%clk 0:00:27.9]} 37. Qb3 {[%clk 0:00:03.6]} 37... Kh7
{[%clk 0:00:24.6]} 38. Rb1 {[%clk 0:00:02.1]} 38... Rc6 {[%clk 0:00:15.5]} 39.
Qb4 {[%clk 0:00:02.2]} 39... f4 {[%clk 0:00:14.2]} 40. Qe4+ {[%clk 0:00:01.2]}
40... Qg6 {[%clk 0:00:13.5]} 41. Qxg6+ {[%clk 0:00:01.2]} 41... Kxg6 {[%clk
0:00:13.7]} 42. Rb6 {[%clk 0:00:02.1]} 42... Kf5 {[%clk 0:00:09.1]} 43. Rxc6
{[%clk 0:00:02.4]} 1-0

[Event "Late-Titled-Tuesday-Blitz-February-27-2024"]
[Site "Chess.com"]
[Date "2024.02.27"]
[Round "11"]
[White "mac0504"]
[Black "bazar-wokzal"]
[Result "1-0"]
[WhiteElo "2719"]
[BlackElo "2609"]
[TimeControl "180+1"]
[EndTime "16:06:27 PST"]
[Termination "mac0504 won by resignation"]

1. c4 {[%clk 0:02:54.4]} 1... e5 {[%clk 0:02:59.7]} 2. Nc3 {[%clk 0:02:53.1]}
2... Nf6 {[%clk 0:02:59.6]} 3. e3 {[%clk 0:02:52.1]} 3... Bb4 {[%clk 0:02:55.3]}
4. Nge2 {[%clk 0:02:51]} 4... O-O {[%clk 0:02:54.3]} 5. a3 {[%clk 0:02:51.6]}
5... Bxc3 {[%clk 0:02:53.3]} 6. Nxc3 {[%clk 0:02:52.5]} 6... Re8 {[%clk
0:02:49.8]} 7. Be2 {[%clk 0:02:52.1]} 7... c6 {[%clk 0:02:49.8]} 8. O-O {[%clk
0:02:50.4]} 8... d5 {[%clk 0:02:50.1]} 9. cxd5 {[%clk 0:02:49.1]} 9... cxd5
{[%clk 0:02:50.4]} 10. d3 {[%clk 0:02:49.3]} 10... Nc6 {[%clk 0:02:50.1]} 11. b4
{[%clk 0:02:47.2]} 11... a6 {[%clk 0:02:46.7]} 12. Bb2 {[%clk 0:02:47]} 12...
Bf5 {[%clk 0:02:45.2]} 13. Rc1 {[%clk 0:02:46.8]} 13... Rc8 {[%clk 0:02:43.8]}
14. Na4 {[%clk 0:02:45]} 14... Qe7 {[%clk 0:02:40]} 15. Qb3 {[%clk 0:02:40.4]}
15... h5 {[%clk 0:02:35.7]} 16. Nc5 {[%clk 0:02:33.6]} 16... h4 {[%clk
0:02:33.6]} 17. h3 {[%clk 0:02:32.8]} 17... Red8 {[%clk 0:01:59.2]} 18. a4
{[%clk 0:02:24.9]} 18... Rd6 {[%clk 0:01:56]} 19. Ba3 {[%clk 0:02:21.8]} 19...
Ne8 {[%clk 0:01:01.6]} 20. b5 {[%clk 0:02:03.7]} 20... axb5 {[%clk 0:01:00.7]}
21. axb5 {[%clk 0:02:03.8]} 21... Na5 {[%clk 0:00:56.1]} 22. Qb2 {[%clk
0:02:04.2]} 22... Rg6 {[%clk 0:00:50.1]} 23. Kh2 {[%clk 0:01:40.8]} 23... Qg5
{[%clk 0:00:43.7]} 24. Rg1 {[%clk 0:01:31.2]} 24... b6 {[%clk 0:00:41.1]} 25.
Na4 {[%clk 0:01:16.2]} 25... Rxc1 {[%clk 0:00:39.3]} 26. Qxc1 {[%clk 0:01:17.1]}
26... Nf6 {[%clk 0:00:20.5]} 27. Nxb6 {[%clk 0:01:04.5]} 27... e4 {[%clk
0:00:19.9]} 28. d4 {[%clk 0:00:53.1]} 28... Nb3 {[%clk 0:00:17]} 29. Qd1 {[%clk
0:00:51.1]} 29... Na5 {[%clk 0:00:15.4]} 30. Bd6 {[%clk 0:00:50.2]} 30... Ng4+
{[%clk 0:00:12.9]} 31. hxg4 {[%clk 0:00:49.5]} 31... Rxd6 {[%clk 0:00:13.5]} 32.
gxf5 {[%clk 0:00:22.9]} 32... Rxb6 {[%clk 0:00:13.3]} 33. Qa4 {[%clk 0:00:23.5]}
33... Nc4 {[%clk 0:00:13.1]} 34. Qa8+ {[%clk 0:00:23.6]} 34... Kh7 {[%clk
0:00:12.9]} 35. Qxd5 {[%clk 0:00:24.4]} 35... Nxe3 {[%clk 0:00:10.5]} 36. fxe3
{[%clk 0:00:20.7]} 36... Qxe3 {[%clk 0:00:07.9]} 37. Bh5 {[%clk 0:00:08.3]}
37... Rh6 {[%clk 0:00:06.2]} 38. Bxf7 {[%clk 0:00:03.7]} 38... Qg3+ {[%clk
0:00:05.1]} 39. Kh1 {[%clk 0:00:04.4]} 39... h3 {[%clk 0:00:05.6]} 40. Bg6+
{[%clk 0:00:05.1]} 40... Rxg6 {[%clk 0:00:04.9]} 41. fxg6+ {[%clk 0:00:05.6]}
41... Kh6 {[%clk 0:00:05.5]} 42. Qe5 {[%clk 0:00:02.1]} 42... hxg2+ {[%clk
0:00:04.3]} 43. Rxg2 {[%clk 0:00:03]} 43... Qe1+ {[%clk 0:00:03.4]} 44. Rg1
{[%clk 0:00:02.7]} 44... Qh4+ {[%clk 0:00:02.9]} 45. Qh2 {[%clk 0:00:03.4]}
45... Qxh2+ {[%clk 0:00:03.5]} 46. Kxh2 {[%clk 0:00:04.3]} 1-0

[Event "Late-Titled-Tuesday-Blitz-February-27-2024"]
[Site "Chess.com"]
[Date "2024.02.27"]
[Round "11"]
[White "GothamChess"]
[Black "Baronessa08"]
[Result "0-1"]
[WhiteElo "2670"]
[BlackElo "2559"]
[TimeControl "180+1"]
[EndTime "16:06:32 PST"]
[Termination "Baronessa08 won on time"]

1. e4 {[%clk 0:02:57.8]} 1... c5 {[%clk 0:02:59.8]} 2. a3 {[%clk 0:02:56.7]}
2... g6 {[%clk 0:02:54.9]} 3. Nc3 {[%clk 0:02:56.8]} 3... Bg7 {[%clk 0:02:54.8]}
4. Bc4 {[%clk 0:02:57.4]} 4... e6 {[%clk 0:02:47.5]} 5. d3 {[%clk 0:02:57.3]}
5... Ne7 {[%clk 0:02:46.7]} 6. Ba2 {[%clk 0:02:58.1]} 6... O-O {[%clk
0:02:46.3]} 7. h4 {[%clk 0:02:58.2]} 7... d5 {[%clk 0:02:42.6]} 8. h5 {[%clk
0:02:58.3]} 8... Nbc6 {[%clk 0:02:41.1]} 9. hxg6 {[%clk 0:02:53.2]} 9... fxg6
{[%clk 0:02:40.1]} 10. Bg5 {[%clk 0:02:33.1]} 10... Qd6 {[%clk 0:02:33.1]} 11.
Nf3 {[%clk 0:02:28]} 11... a6 {[%clk 0:02:27.3]} 12. Qd2 {[%clk 0:02:23]} 12...
b5 {[%clk 0:02:27.4]} 13. Bh6 {[%clk 0:02:22.3]} 13... Rf7 {[%clk 0:02:15.6]}
14. Ng5 {[%clk 0:02:05.1]} 14... Bxh6 {[%clk 0:02:15.7]} 15. Rxh6 {[%clk
0:02:05]} 15... Rg7 {[%clk 0:02:15.9]} 16. O-O-O {[%clk 0:01:50.1]} 16... b4
{[%clk 0:01:17]} 17. Nb1 {[%clk 0:01:29.1]} 17... bxa3 {[%clk 0:01:14.1]} 18.
bxa3 {[%clk 0:01:15.6]} 18... Qe5 {[%clk 0:00:44.2]} 19. Rdh1 {[%clk 0:01:03.9]}
19... Rb8 {[%clk 0:00:36.8]} 20. c3 {[%clk 0:01:01]} 20... Na5 {[%clk
0:00:23.6]} 21. Rxh7 {[%clk 0:00:51]} 21... Rxh7 {[%clk 0:00:24]} 22. Rxh7
{[%clk 0:00:44.2]} 22... Nec6 {[%clk 0:00:21.1]} 23. f4 {[%clk 0:00:40]} 23...
Qf6 {[%clk 0:00:17.2]} 24. exd5 {[%clk 0:00:33.7]} 24... Nd4 {[%clk 0:00:07.5]}
25. cxd4 {[%clk 0:00:29.5]} 25... Qxd4 {[%clk 0:00:07.4]} 26. dxe6 {[%clk
0:00:18]} 26... Nb3+ {[%clk 0:00:07.8]} 27. Bxb3 {[%clk 0:00:17.6]} 27... Rxb3
{[%clk 0:00:08.7]} 28. Rc7 {[%clk 0:00:11.3]} 28... Qg1+ {[%clk 0:00:07.7]} 29.
Qd1 {[%clk 0:00:06.8]} 29... Rxb1+ {[%clk 0:00:07.9]} 30. Kxb1 {[%clk
0:00:07.7]} 30... Qxd1+ {[%clk 0:00:08.3]} 31. Kb2 {[%clk 0:00:06.8]} 31... Qd2+
{[%clk 0:00:08.4]} 32. Ka1 {[%clk 0:00:06.4]} 32... Qc3+ {[%clk 0:00:08.7]} 33.
Ka2 {[%clk 0:00:05.8]} 33... Qc2+ {[%clk 0:00:08.5]} 34. Ka1 {[%clk 0:00:06.2]}
34... Qc1+ {[%clk 0:00:06.2]} 35. Ka2 {[%clk 0:00:06.2]} 35... Qd2+ {[%clk
0:00:06.8]} 36. Ka1 {[%clk 0:00:06.5]} 36... Bxe6 {[%clk 0:00:06.6]} 37. Nxe6
{[%clk 0:00:04.1]} 37... Qc3+ {[%clk 0:00:07]} 38. Ka2 {[%clk 0:00:03.5]} 38...
Qd2+ {[%clk 0:00:06.8]} 39. Ka1 {[%clk 0:00:03.9]} 39... Qxd3 {[%clk 0:00:07.1]}
40. Rc8+ {[%clk 0:00:03.5]} 40... Kf7 {[%clk 0:00:06.4]} 41. Ng5+ {[%clk
0:00:04.1]} 41... Ke7 {[%clk 0:00:05.9]} 42. Rc7+ {[%clk 0:00:03.2]} 42... Kd8
{[%clk 0:00:05.7]} 43. Ne6+ {[%clk 0:00:03]} 43... Ke8 {[%clk 0:00:05]} 44. Ng7+
{[%clk 0:00:03.7]} 44... Kd8 {[%clk 0:00:04.3]} 45. Ne6+ {[%clk 0:00:04.1]}
45... Ke8 {[%clk 0:00:04.9]} 46. Nxc5 {[%clk 0:00:03.4]} 46... Qf1+ {[%clk
0:00:03.8]} 47. Kb2 {[%clk 0:00:03.3]} 47... Qxg2+ {[%clk 0:00:04.5]} 48. Kb3
{[%clk 0:00:03]} 48... Qf3+ {[%clk 0:00:04.7]} 49. Kb4 {[%clk 0:00:02.5]} 49...
Qxf4+ {[%clk 0:00:05]} 0-1

[Event "Late-Titled-Tuesday-Blitz-February-27-2024"]
[Site "Chess.com"]
[Date "2024.02.27"]
[Round "11"]
[White "ckgchess"]
[Black "vi_pranav"]
[Result "1-0"]
[WhiteElo "2898"]
[BlackElo "3079"]
[TimeControl "180+1"]
[EndTime "16:06:35 PST"]
[Termination "ckgchess won on time"]

1. e4 {[%clk 0:03:00.9]} 1... e5 {[%clk 0:02:59.9]} 2. Nf3 {[%clk 0:03:00.9]}
2... Nc6 {[%clk 0:03:00.4]} 3. Bc4 {[%clk 0:02:58.7]} 3... Nf6 {[%clk
0:03:00.7]} 4. Ng5 {[%clk 0:02:58.4]} 4... d5 {[%clk 0:03:00.3]} 5. exd5 {[%clk
0:02:59.3]} 5... Na5 {[%clk 0:03:01]} 6. Bb5+ {[%clk 0:02:59.9]} 6... c6 {[%clk
0:03:01.8]} 7. dxc6 {[%clk 0:03:00.8]} 7... bxc6 {[%clk 0:03:02.7]} 8. Qf3
{[%clk 0:02:54.9]} 8... cxb5 {[%clk 0:03:00]} 9. Qxa8 {[%clk 0:02:55.8]} 9...
Qc7 {[%clk 0:03:00.4]} 10. O-O {[%clk 0:02:35.2]} 10... Nc6 {[%clk 0:02:53.3]}
11. Nc3 {[%clk 0:02:31.6]} 11... Nd4 {[%clk 0:02:41.6]} 12. Nge4 {[%clk
0:02:25.1]} 12... Nxe4 {[%clk 0:02:37.9]} 13. Qxe4 {[%clk 0:02:12.2]} 13... Bb7
{[%clk 0:02:35.1]} 14. Qg4 {[%clk 0:02:01.2]} 14... h5 {[%clk 0:02:28.1]} 15.
Qd1 {[%clk 0:02:00]} 15... b4 {[%clk 0:01:46.9]} 16. Ne2 {[%clk 0:01:38.2]}
16... Nxc2 {[%clk 0:01:45.1]} 17. Rb1 {[%clk 0:01:38]} 17... h4 {[%clk
0:01:38.6]} 18. h3 {[%clk 0:01:25.2]} 18... Rh6 {[%clk 0:01:18.4]} 19. d4 {[%clk
0:01:17.9]} 19... Rg6 {[%clk 0:01:15.6]} 20. f3 {[%clk 0:01:01.7]} 20... Ba6
{[%clk 0:00:27.1]} 21. Rf2 {[%clk 0:00:58.6]} 21... Bxe2 {[%clk 0:00:23.8]} 22.
Qxe2 {[%clk 0:00:47.8]} 22... Nxd4 {[%clk 0:00:24]} 23. Qd3 {[%clk 0:00:47.2]}
23... Bc5 {[%clk 0:00:18]} 24. Be3 {[%clk 0:00:43.8]} 24... Qb6 {[%clk
0:00:11.9]} 25. Kh1 {[%clk 0:00:43]} 25... Rd6 {[%clk 0:00:07.6]} 26. Qh7 {[%clk
0:00:38.8]} 26... Ne6 {[%clk 0:00:06.9]} 27. Qh8+ {[%clk 0:00:33.3]} 27... Ke7
{[%clk 0:00:04.2]} 28. Qxh4+ {[%clk 0:00:33.2]} 28... f6 {[%clk 0:00:04.1]} 29.
Bxc5 {[%clk 0:00:31.8]} 29... Qxc5 {[%clk 0:00:04.8]} 30. Re2 {[%clk 0:00:28.1]}
30... a5 {[%clk 0:00:03.9]} 31. Rbe1 {[%clk 0:00:27.3]} 31... Kf7 {[%clk
0:00:03.6]} 32. Qh5+ {[%clk 0:00:24.9]} 32... Kf8 {[%clk 0:00:03.4]} 33. Re4
{[%clk 0:00:21]} 33... Qc2 {[%clk 0:00:03.2]} 34. Qf5 {[%clk 0:00:11.9]} 34...
Kg8 {[%clk 0:00:01.3]} 35. Rxe5 {[%clk 0:00:10.2]} 35... Qxf5 {[%clk 0:00:01.5]}
36. Rxf5 {[%clk 0:00:11]} 36... Kf7 {[%clk 0:00:01.6]} 37. Rxa5 {[%clk
0:00:11.2]} 37... Nf4 {[%clk 0:00:02.3]} 38. g3 {[%clk 0:00:05.3]} 38... Nxh3
{[%clk 0:00:01.7]} 39. Kg2 {[%clk 0:00:05.1]} 39... Ng5 {[%clk 0:00:01.9]} 40.
Re2 {[%clk 0:00:05.8]} 40... Rd3 {[%clk 0:00:02.3]} 41. f4 {[%clk 0:00:05.9]}
41... Nh7 {[%clk 0:00:01.5]} 42. Ra7+ {[%clk 0:00:06.6]} 42... Kg6 {[%clk
0:00:01.8]} 43. Ree7 {[%clk 0:00:05.9]} 43... Kf5 {[%clk 0:00:02]} 44. Rxg7
{[%clk 0:00:05.7]} 44... Nf8 {[%clk 0:00:02.5]} 45. Rae7 {[%clk 0:00:05.6]}
45... Rd2+ {[%clk 0:00:02.5]} 46. Kf3 {[%clk 0:00:05.7]} 1-0

[Event "Late-Titled-Tuesday-Blitz-February-27-2024"]
[Site "Chess.com"]
[Date "2024.02.27"]
[Round "11"]
[White "Oleksandr_Bortnyk"]
[Black "js20000"]
[Result "0-1"]
[WhiteElo "3026"]
[BlackElo "2861"]
[TimeControl "180+1"]
[EndTime "16:06:36 PST"]
[Termination "js20000 won on time"]

1. e4 {[%clk 0:03:00.9]} 1... e6 {[%clk 0:03:00.9]} 2. Ke2 {[%clk 0:03:01.4]}
2... d5 {[%clk 0:02:59.9]} 3. e5 {[%clk 0:02:59.4]} 3... c5 {[%clk 0:02:59.1]}
4. f4 {[%clk 0:02:59.1]} 4... Nc6 {[%clk 0:02:59]} 5. Nf3 {[%clk 0:02:59.8]}
5... f6 {[%clk 0:02:59]} 6. exf6 {[%clk 0:02:57.2]} 6... Nxf6 {[%clk 0:02:58.9]}
7. d3 {[%clk 0:02:55.6]} 7... Bd6 {[%clk 0:02:59.1]} 8. Nc3 {[%clk 0:02:36.5]}
8... e5 {[%clk 0:02:57.6]} 9. fxe5 {[%clk 0:02:35.3]} 9... Nxe5 {[%clk
0:02:57.1]} 10. Bg5 {[%clk 0:02:29.2]} 10... O-O {[%clk 0:02:51.3]} 11. Kd2
{[%clk 0:02:05.8]} 11... h6 {[%clk 0:02:38.9]} 12. Bxf6 {[%clk 0:02:02]} 12...
Qxf6 {[%clk 0:02:39.8]} 13. Kc1 {[%clk 0:01:50.6]} 13... Nxf3 {[%clk 0:02:33.5]}
14. gxf3 {[%clk 0:01:51.5]} 14... Be5 {[%clk 0:02:18.6]} 15. Qe1 {[%clk
0:01:33.4]} 15... Bf5 {[%clk 0:01:51.7]} 16. Kb1 {[%clk 0:01:28.5]} 16... Rae8
{[%clk 0:01:49.5]} 17. Qd2 {[%clk 0:01:08.2]} 17... Bf4 {[%clk 0:01:40.4]} 18.
Qd1 {[%clk 0:01:05.2]} 18... Re5 {[%clk 0:01:21.3]} 19. a4 {[%clk 0:00:34.8]}
19... Rfe8 {[%clk 0:01:19.4]} 20. Ka2 {[%clk 0:00:32.8]} 20... Qe6 {[%clk
0:01:14.2]} 21. d4 {[%clk 0:00:24.8]} 21... cxd4 {[%clk 0:01:08.1]} 22. Qxd4
{[%clk 0:00:25.3]} 22... Be3 {[%clk 0:01:08]} 23. Qb4 {[%clk 0:00:21.5]} 23...
a5 {[%clk 0:00:57.3]} 24. Qb3 {[%clk 0:00:20.7]} 24... Kh7 {[%clk 0:00:56.2]}
25. Rd1 {[%clk 0:00:18]} 25... d4 {[%clk 0:00:56.1]} 26. Bc4 {[%clk 0:00:17.2]}
26... dxc3 {[%clk 0:00:56]} 27. Qxc3 {[%clk 0:00:06.1]} 27... Qxc4+ {[%clk
0:00:52.6]} 28. Qxc4 {[%clk 0:00:05.5]} 28... Be6 {[%clk 0:00:52.9]} 29. Qxe6
{[%clk 0:00:05.9]} 29... R5xe6 {[%clk 0:00:53.8]} 30. Rd7 {[%clk 0:00:05.7]}
30... b6 {[%clk 0:00:53.2]} 31. Rhd1 {[%clk 0:00:03.9]} 31... R8e7 {[%clk
0:00:52.8]} 32. Rd8 {[%clk 0:00:02]} 32... Bf4 {[%clk 0:00:50.2]} 33. c3 {[%clk
0:00:02.2]} 33... Re2 {[%clk 0:00:49.4]} 34. h4 {[%clk 0:00:02.5]} 34... Be5
{[%clk 0:00:48.3]} 35. Kb3 {[%clk 0:00:02]} 35... Bf6 {[%clk 0:00:47.3]} 36. h5
{[%clk 0:00:02.5]} 36... Rh2 {[%clk 0:00:46.8]} 37. R8d2 {[%clk 0:00:01.7]}
37... Rxh5 {[%clk 0:00:45.4]} 38. Rd6 {[%clk 0:00:02.2]} 38... Rb7 {[%clk
0:00:42.8]} 39. Rc6 {[%clk 0:00:01.7]} 39... b5 {[%clk 0:00:40.9]} 40. Rd2
{[%clk 0:00:01.9]} 40... bxa4+ {[%clk 0:00:36.7]} 41. Kxa4 {[%clk 0:00:02.8]}
41... Rhb5 {[%clk 0:00:36.5]} 42. Ka3 {[%clk 0:00:03]} 42... Rb3+ {[%clk
0:00:33.6]} 43. Ka2 {[%clk 0:00:03.1]} 43... a4 {[%clk 0:00:34.2]} 44. Ra6
{[%clk 0:00:03.4]} 44... a3 {[%clk 0:00:29.7]} 45. Rxa3 {[%clk 0:00:04.3]} 45...
Rxa3+ {[%clk 0:00:30]} 46. Kxa3 {[%clk 0:00:05.2]} 46... h5 {[%clk 0:00:30.5]}
47. Rh2 {[%clk 0:00:03.4]} 47... h4 {[%clk 0:00:30.3]} 48. b4 {[%clk 0:00:04.1]}
48... Kg6 {[%clk 0:00:26.5]} 49. c4 {[%clk 0:00:04.3]} 49... Kf5 {[%clk
0:00:26.3]} 50. c5 {[%clk 0:00:05]} 50... Kf4 {[%clk 0:00:25.4]} 51. c6 {[%clk
0:00:05]} 51... Rc7 {[%clk 0:00:21.4]} 52. b5 {[%clk 0:00:05.1]} 52... Kg3
{[%clk 0:00:21.8]} 53. Rc2 {[%clk 0:00:05.3]} 53... Bd4 {[%clk 0:00:18.4]} 54.
Rc4 {[%clk 0:00:06]} 54... Bf2 {[%clk 0:00:15]} 55. Rg4+ {[%clk 0:00:01.7]}
55... Kxf3 {[%clk 0:00:15.3]} 56. Rxh4 {[%clk 0:00:01.1]} 56... Bxh4 {[%clk
0:00:14.7]} 0-1

[Event "Late-Titled-Tuesday-Blitz-February-27-2024"]
[Site "Chess.com"]
[Date "2024.02.27"]
[Round "11"]
[White "wqws"]
[Black "Arystanner"]
[Result "0-1"]
[WhiteElo "2688"]
[BlackElo "2796"]
[TimeControl "180+1"]
[EndTime "16:06:36 PST"]
[Termination "Arystanner won by resignation"]

1. e4 {[%clk 0:02:59]} 1... c5 {[%clk 0:02:59.6]} 2. Nf3 {[%clk 0:02:59.3]} 2...
Nc6 {[%clk 0:03:00.3]} 3. d4 {[%clk 0:02:59.5]} 3... cxd4 {[%clk 0:03:01.2]} 4.
Nxd4 {[%clk 0:03:00.4]} 4... e5 {[%clk 0:03:01.9]} 5. Nb5 {[%clk 0:03:00.3]}
5... d6 {[%clk 0:03:02.6]} 6. c4 {[%clk 0:03:00.1]} 6... g6 {[%clk 0:03:03.2]}
7. N1c3 {[%clk 0:03:00.2]} 7... a6 {[%clk 0:03:03.8]} 8. Na3 {[%clk 0:02:59.5]}
8... Be6 {[%clk 0:03:04.5]} 9. h4 {[%clk 0:02:56.2]} 9... Bh6 {[%clk 0:02:59.2]}
10. Bxh6 {[%clk 0:02:54.1]} 10... Nxh6 {[%clk 0:02:59.4]} 11. Qd2 {[%clk
0:02:53]} 11... Ng4 {[%clk 0:02:56.9]} 12. f3 {[%clk 0:02:51.7]} 12... Nf6
{[%clk 0:02:56.5]} 13. Nc2 {[%clk 0:02:51.4]} 13... Nh5 {[%clk 0:02:55.5]} 14.
O-O-O {[%clk 0:02:49.9]} 14... Qb6 {[%clk 0:02:45.1]} 15. Qe3 {[%clk 0:01:50.4]}
15... Qc7 {[%clk 0:02:27.9]} 16. g4 {[%clk 0:01:45.7]} 16... Ng3 {[%clk
0:02:26.5]} 17. Rg1 {[%clk 0:01:39.2]} 17... Nxf1 {[%clk 0:02:26.8]} 18. Rgxf1
{[%clk 0:01:40.1]} 18... Bxc4 {[%clk 0:02:27.2]} 19. Rf2 {[%clk 0:01:40.6]}
19... O-O-O {[%clk 0:02:26.8]} 20. Rfd2 {[%clk 0:01:37.5]} 20... Kb8 {[%clk
0:02:26.9]} 21. Kb1 {[%clk 0:01:30.6]} 21... Be6 {[%clk 0:02:26.7]} 22. Nd5
{[%clk 0:01:24.5]} 22... Bxd5 {[%clk 0:02:26.8]} 23. Rxd5 {[%clk 0:01:24.1]}
23... Ne7 {[%clk 0:02:27.3]} 24. R5d3 {[%clk 0:01:23.3]} 24... Rc8 {[%clk
0:02:15.8]} 25. Qd2 {[%clk 0:01:19.5]} 25... Rhd8 {[%clk 0:02:13.5]} 26. Ne3
{[%clk 0:01:16]} 26... Nc6 {[%clk 0:01:46.4]} 27. Nd5 {[%clk 0:01:05.7]} 27...
Qa5 {[%clk 0:01:40]} 28. Qxa5 {[%clk 0:01:04.8]} 28... Nxa5 {[%clk 0:01:40.3]}
29. Nf6 {[%clk 0:01:04.5]} 29... h6 {[%clk 0:01:17.2]} 30. Rxd6 {[%clk
0:01:02.9]} 30... Rxd6 {[%clk 0:01:18.1]} 31. Rxd6 {[%clk 0:01:03.1]} 31... Nc4
{[%clk 0:01:18.9]} 32. Rd7 {[%clk 0:01:02.8]} 32... Rc6 {[%clk 0:01:04.9]} 33.
Ng8 {[%clk 0:00:58.6]} 33... h5 {[%clk 0:01:03.6]} 34. g5 {[%clk 0:00:50.2]}
34... Rc7 {[%clk 0:00:59.9]} 35. Rd5 {[%clk 0:00:43.1]} 35... Ne3 {[%clk
0:00:50.7]} 36. Rxe5 {[%clk 0:00:40.7]} 36... Ng2 {[%clk 0:00:51.4]} 37. Re8+
{[%clk 0:00:37.1]} 37... Ka7 {[%clk 0:00:51.2]} 38. Ne7 {[%clk 0:00:22.2]} 38...
b5 {[%clk 0:00:18.4]} 39. Nc8+ {[%clk 0:00:16.9]} 39... Kb7 {[%clk 0:00:17.9]}
40. Nd6+ {[%clk 0:00:17.1]} 40... Kc6 {[%clk 0:00:17.7]} 41. e5 {[%clk
0:00:16.3]} 41... Nxh4 {[%clk 0:00:18]} 42. f4 {[%clk 0:00:16.4]} 42... Ng2
{[%clk 0:00:18]} 43. f5 {[%clk 0:00:16.1]} 43... gxf5 {[%clk 0:00:16.2]} 44.
Nxf5 {[%clk 0:00:17]} 44... Kd5 {[%clk 0:00:16.2]} 45. e6 {[%clk 0:00:13.4]}
45... fxe6 {[%clk 0:00:15.9]} 46. Ne7+ {[%clk 0:00:13.3]} 46... Kd6 {[%clk
0:00:16.5]} 47. Ng8 {[%clk 0:00:11.3]} 47... Rc5 {[%clk 0:00:16]} 48. g6 {[%clk
0:00:11.3]} 48... Rg5 {[%clk 0:00:16.7]} 49. Ne7 {[%clk 0:00:10.8]} 49... Nf4
{[%clk 0:00:17.3]} 50. Nc8+ {[%clk 0:00:07.2]} 50... Kd7 {[%clk 0:00:17.4]} 51.
Rg8 {[%clk 0:00:07.5]} 51... Rxg6 {[%clk 0:00:17.3]} 52. Nb6+ {[%clk 0:00:07.4]}
52... Kc6 {[%clk 0:00:17.4]} 53. Rxg6 {[%clk 0:00:06.8]} 53... Nxg6 {[%clk
0:00:17.6]} 0-1